bitfinex-derivatives/quotes_SOLF0:USTF0_20250703
["timestamp","ask_amount","ask_price","bid_price","bid_amount"]
[1751558321481,4.96878419,150.13,150.08,47.34]
[1751558323076,4.96878419,150.14,150.08,47.34]
[1751558323979,11.62708419,150.14,150.11,6.6592]
[1751558324178,4.96878419,150.14,150.08,47.34]
[1751558324381,6.6592,150.12,150.09,6.6601]
[1751558324580,4.96878419,150.13,150.09,6.6601]
[1751558325076,11.62758419,150.13,150.1,6.6599]
[1751558326081,4.96878419,150.13,150.1,6.6599]
[1751558326284,4.96878419,150.13,150.06,203.5007]
[1751558326285,4.96878419,150.11,150.06,51.6627]
[1751558326583,4.96878419,150.07,150.06,47.06]
[1751558326977,4.96878419,150.07,150.06,53.7215]
[1751558327789,4.96878419,150.08,150.07,6.6612]
[1751558327986,4.96878419,150.08,150.06,47.06]
[1751558328290,9.93756838,150.08,150.02,6.663]
[1751558328490,4.96878419,150.04,150.01,622.56]
[1751558328885,4.96878419,150.04,150.03,6.663]
[1751558329080,7.0732,150.11,150.01,818.88]
[1751558329286,4.96878419,150.07,150.01,818.88]
[1751558329486,4.96878419,150.07,150.05,6.6619]
[1751558329885,4.96878419,150.09,150.06,6.6613]
[1751558330087,11.62928419,150.09,150.06,6.6613]
[1751558330484,11.62928419,150.09,150.03,2.3705]
[1751558330881,4.96878419,150.09,150.03,2.3705]
[1751558331594,53.12954677,150.14,150.04,4.96878419]
[1751558331891,5.71367779,150.13,150.06,4.96878419]
[1751558332092,4.96878419,150.16,150.08,4.96878419]
[1751558332281,5.71844485,150.15,150.11,6.6591]
[1751558332485,5.71844485,150.14,150.11,6.6591]
[1751558332683,6.6579,150.15,150.1,6.6598]
[1751558332991,5.71846117,150.14,150.08,9.56748419]
[1751558333191,5.72259522,150.13,150.08,9.56748419]
[1751558333384,10.69125884,150.12,150.07,47.08]
[1751558333586,4.96878419,150.12,150.07,47.08]
[1751558333783,7.45462478,150.12,150.07,47.08]
[1751558334492,5.74707845,150.11,150.07,47.08]
[1751558334693,5.74748609,150.1,150.07,47.08]
[1751558334995,6.6596,150.11,150.07,47.08]
[1751558335291,2.3238,150.17,150.07,47.08]
[1751558335292,13.1963821,150.1,150.07,47.08]
[1751558335495,7.45462478,150.1,150.07,47.08]
[1751558335892,6.06954677,150.13,150.07,47.08]
[1751558336093,5.74122579,150.12,150.07,47.08]
[1751558336293,5.74122579,150.11,150.07,47.08]
[1751558336492,5.74122579,150.1,150.09,6.6601]
[1751558337696,15.90557155,150.15,150.12,6.6589]
[1751558337897,5.74370666,150.14,150.07,47.08]
[1751558338098,5.74370666,150.13,150.07,47.08]
[1751558338394,5.74370666,150.12,150.07,47.08]
[1751558338590,6.6582,150.14,150.07,47.08]
[1751558338790,10.39132317,150.17,150.12,6.6586]
[1751558338791,5.74439705,150.13,150.12,6.6586]
[1751558340596,5.74439705,150.13,150.11,6.6592]
[1751558340796,7.45462478,150.15,150.11,6.6592]
[1751558340995,5.73957648,150.14,150.07,47.08]
[1751558341196,5.73957648,150.13,150.07,47.08]
[1751558341395,7.45462478,150.15,150.07,47.08]
[1751558341597,12.39705472,150.14,150.11,6.6592]
[1751558341798,5.73875472,150.13,150.07,47.08]
[1751558341994,5.73875472,150.12,150.07,47.08]
[1751558342194,7.45462478,150.15,150.07,47.08]
[1751558342396,5.73864727,150.14,150.12,6.6589]
[1751558342697,5.73864727,150.13,150.12,6.6589]
[1751558343492,5.73864727,150.13,150.11,6.6592]
[1751558343698,5.73864727,150.12,150.11,6.6592]
[1751558345603,5.73864727,150.12,150.07,47.08]
[1751558345803,5.73864727,150.11,150.07,47.08]
[1751558346003,5.73864727,150.1,150.09,6.6603]
[1751558346808,7.45462478,150.13,150.1,6.6598]
[1751558347106,7.45462478,150.13,150.07,47.08]
[1751558347107,5.74734338,150.12,150.07,47.08]
[1751558347404,5.74734338,150.11,150.07,47.08]
[1751558347597,7.45462478,150.13,150.1,6.6599]
[1751558347798,5.75031257,150.12,150.1,6.6599]
[1751558347998,5.75031257,150.11,150.1,6.6599]
[1751558348598,6.06954677,150.15,150.1,6.6599]
[1751558348908,6.6591,150.12,150.09,6.6602]
[1751558349105,5.75152277,150.11,150.09,6.6602]
[1751558349306,6.6591,150.12,150.09,6.6602]
[1751558349506,5.75151689,150.11,150.1,6.6599]
[1751558353317,5.75151689,150.11,150.09,6.66]
[1751558353514,6.659,150.12,150.07,47.08]
[1751558353812,10.70355674,150.11,150.07,47.08]
[1751558354013,4.96986559,150.11,150.1,6.6599]
[1751558354211,10.70449046,150.11,150.1,6.6599]
[1751558356314,5.73462487,150.11,150.1,6.6599]
[1751558362922,17.69781236,150.14,150.07,47.08]
[1751558362923,4.96986559,150.14,150.12,6.659]
[1751558363126,5.7331252,150.13,150.08,2.3753]
[1751558363326,5.7331252,150.12,150.08,2.3753]
[1751558363624,4.96986559,150.14,150.12,6.659]
[1751558363824,5.73311403,150.13,150.12,6.659]
[1751558366826,5.73311403,150.13,150.08,2.3753]
[1751558367016,4.96986559,150.11,150.08,2.3753]
[1751558367218,6.6583,150.14,150.12,6.6589]
[1751558367523,10.69163034,150.13,150.12,6.6589]
[1751558371437,10.69482379,150.13,150.08,2.3753]
[1751558371636,5.7249582,150.12,150.08,2.3753]
[1751558371935,4.96986559,150.13,150.08,2.3753]
[1751558372136,5.72489998,150.12,150.08,2.3753]
[1751558372337,4.96986559,150.13,150.08,2.3753]
[1751558372531,10.69459022,150.12,150.08,2.3753]
[1751558372837,5.72472463,150.11,150.08,2.3753]
[1751558373036,4.96986559,150.12,150.09,6.6599]
[1751558373337,5.72556932,150.11,150.09,6.6599]
[1751558373636,11.62906559,150.12,150.09,6.6599]
[1751558373842,5.72556928,150.11,150.09,6.6599]
[1751558374038,5.72556928,150.1,150.09,6.6599]
[1751558375037,10.69543487,150.1,150.08,6.6606]
[1751558375232,5.72556928,150.09,150.08,6.6606]
[1751558376833,5.72556928,150.09,149.93,20.0017]
[1751558377035,4.96986559,150.1,150.02,47.0]
[1751558377036,4.96986559,150.07,150.02,47.0]
[1751558377445,4.96986559,150.07,150.06,6.6617]
[1751558377741,10.6927252,150.07,150.06,6.6617]
[1751558378442,11.63056559,150.09,150.06,6.6617]
[1751558378637,5.72161328,150.08,150.06,6.6617]
[1751558378839,11.63056559,150.09,150.06,6.6617]
[1751558379040,5.72161328,150.08,150.06,6.6617]
[1751558379240,11.63056559,150.09,150.06,6.6617]
[1751558379440,5.72051001,150.08,150.06,6.6617]
[1751558379741,11.63056559,150.09,150.06,6.6617]
[1751558379947,5.72051001,150.08,150.06,6.6617]
[1751558380241,4.96986559,150.1,150.02,59.13706559]
[1751558380442,5.70158115,150.09,150.02,59.13706559]
[1751558380641,4.96986559,150.1,150.02,59.13706559]
[1751558380844,5.70168036,150.09,150.08,6.6605]
[1751558381247,4.96986559,150.12,150.06,4.96986559]
[1751558381541,5.70266872,150.11,150.09,6.6601]
[1751558381746,5.70266872,150.1,150.06,4.96986559]
[1751558381946,11.62886559,150.12,150.09,6.6601]
[1751558382245,5.70266008,150.11,150.09,6.6601]
[1751558382444,5.70266008,150.1,150.09,6.6601]
[1751558383043,6.07938454,150.14,150.11,6.6593]
[1751558383244,5.70312448,150.13,150.11,6.6593]
[1751558383446,5.70312448,150.12,150.11,6.6593]
[1751558383843,5.70312448,150.12,150.1,6.6597]
[1751558384047,11.04925013,150.14,150.1,6.6597]
[1751558384048,5.70312448,150.11,150.1,6.6597]
[1751558386949,11.04925013,150.15,150.13,6.6585]
[1751558387147,5.72772568,150.14,150.13,6.6585]
[1751558388654,2.568e-05,150.14,150.13,6.6585]
[1751558389248,6.07938454,150.19,150.12,51.74986559]
[1751558389443,4.96986559,150.2,150.12,51.74986559]
[1751558390047,4.96986559,150.2,150.18,6.656]
[1751558390744,4.96986559,150.2,150.17,6.6566]
[1751558391051,4.96986559,150.18,150.13,4.4941]
[1751558391351,4.96986559,150.18,150.16,6.6569]
[1751558392254,4.96986559,150.18,150.17,6.6568]
[1751558393650,6.07938454,150.22,150.13,4.4941]
[1751558393955,51.3702,150.26,150.14,2.2583]
[1751558393956,4.96986559,150.21,150.14,2.2583]
[1751558394649,4.96986559,150.21,150.14,7.22816559]
[1751558395354,11.62486559,150.21,150.14,2.2583]
[1751558395558,4.96986559,150.19,150.14,2.2583]
[1751558395853,4.96986559,150.19,150.17,6.6565]
[1751558397650,4.96986559,150.19,150.18,6.6563]
[1751558399256,11.62586559,150.19,150.13,4.4941]
[1751558399961,11.62586559,150.19,150.16,6.657]
[1751558400463,6.656,150.19,150.16,6.657]
[1751558400657,6.656,150.19,150.13,4.4941]
[1751558400857,51.3702,150.26,150.12,46.78]
[1751558401164,6.0639711,150.22,150.12,46.78]
[1751558401360,4.6054,150.21,150.11,2.2601]
[1751558401563,5.72809541,150.2,150.11,2.2601]
[1751558401866,5.72809541,150.19,150.11,2.2601]
[1751558402161,5.72809541,150.18,150.16,6.6569]
[1751558403363,12.38439541,150.18,150.16,6.6569]
[1751558403564,6.6563,150.18,150.16,6.6569]
[1751558403966,4.6054,150.21,150.12,46.76]
[1751558404168,10.6693711,150.21,150.12,46.76]
[1751558404960,6.0639711,150.16,149.93,16.53278205]
[1751558405165,6.0639711,150.13,149.95,817.84]
[1751558405470,6.662,150.06,149.96,195.88]
[1751558405670,8.4010711,150.12,149.95,621.96]
[1751558405876,5.7066973,150.11,149.96,195.96]
[1751558406174,5.7066973,150.1,149.95,575.18]
[1751558406366,5.7066973,150.09,149.96,46.78]
[1751558406565,5.7066973,150.08,149.97,196.64]
[1751558406766,2.3562,150.09,149.97,196.64]
[1751558406966,5.7055022,150.08,149.97,196.64]
[1751558407362,8.4201711,150.13,149.97,196.64]
[1751558407569,6.6601,150.1,150.05,6.6617]
[1751558407869,2.3562,150.13,150.04,46.78]
[1751558408068,5.70468586,150.12,150.04,46.78]
[1751558408270,5.70468586,150.11,150.04,46.78]
[1751558408466,46.78,150.14,150.04,46.78]
[1751558408660,7.12221212,150.13,150.09,6.6603]
[1751558408968,4.57195619,150.13,150.04,46.78]
[1751558409164,53.4384,150.14,150.04,46.78]
[1751558409370,53.4384,150.14,150.09,6.6601]
[1751558409566,6.6584,150.14,150.09,6.6601]
[1751558409967,6.6586,150.13,150.09,6.6601]
[1751558410162,2.3777,150.15,150.04,46.78]
[1751558410365,6.6583,150.14,150.04,46.78]
[1751558410572,2.3777,150.15,150.04,46.78]
[1751558411068,2.3562,150.18,150.05,575.36]
[1751558411273,5.65506616,150.19,150.05,575.36]
[1751558411473,5.65506616,150.18,150.05,575.36]
[1751558411673,5.65506616,150.18,150.16,6.6571]
[1751558411866,6.656,150.19,150.12,46.78]
[1751558412066,4.5201387,150.21,150.13,46.78]
[1751558412267,5.65612445,150.2,150.13,46.78]
[1751558412781,51.3377,150.22,150.17,6.6565]
[1751558412976,5.65560563,150.21,150.17,6.6565]
[1751558413172,5.65560563,150.21,150.13,46.78]
[1751558413379,632.68825899,150.26,150.13,46.78]
[1751558413672,12.70999271,150.25,150.13,46.78]
[1751558413875,5.65342159,150.24,150.13,46.78]
[1751558414269,6.653,150.26,150.14,575.34]
[1751558414466,5.70233017,150.25,150.14,575.34]
[1751558414668,4.51528846,150.26,150.14,575.34]
[1751558414865,5.70232796,150.25,150.14,575.34]
[1751558415069,7.05335752,150.27,150.14,575.34]
[1751558415269,5.70181128,150.26,150.14,575.34]
[1751558415464,5.70181128,150.25,150.14,575.34]
[1751558415674,6.6526,150.27,150.14,575.34]
[1751558415871,5.7009797,150.26,150.14,575.34]
[1751558416075,5.7009797,150.26,150.21,6.6547]
[1751558416372,5.7009797,150.26,150.2,47.32]
[1751558416671,46.78,150.29,150.2,47.32]
[1751558416875,5.70020884,150.28,150.2,47.32]
[1751558417267,4.6442,150.3,150.2,47.32]
[1751558417576,5.69745909,150.29,150.23,6.6539]
[1751558418175,6.6521,150.28,150.23,6.6539]
[1751558418376,4.6442,150.3,150.24,6.6536]
[1751558418682,5.69536663,150.29,150.24,6.6536]
[1751558418883,6.6519,150.28,150.2,49.6575]
[1751558419182,6.6519,150.28,150.23,6.6539]
[1751558419382,6.6517,150.29,150.2,49.6575]
[1751558419583,7.15150477,150.31,150.2,49.6575]
[1751558419782,5.73550275,150.3,150.2,49.6575]
[1751558419980,7.15150477,150.32,150.2,49.6575]
[1751558420178,5.73594536,150.31,150.26,6.6526]
[1751558420381,7.15150477,150.32,150.25,47.3]
[1751558420587,6.6509,150.31,150.25,47.3]
[1751558420775,7.43671203,150.3,150.25,47.3]
[1751558421176,4.62647731,150.33,150.25,244.16]
[1751558421380,7.43671203,150.32,150.25,244.16]
[1751558422379,6.6499,150.33,150.28,6.6515]
[1751558422685,7.43671203,150.35,150.26,7.43671203]
[1751558422884,2.3144,150.36,150.27,6.6522]
[1751558422885,7.43671203,150.33,150.27,6.6522]
[1751558423287,6.6504,150.32,150.27,6.6522]
[1751558423480,6.6504,150.32,150.28,6.6519]
[1751558424685,14.08661203,150.33,150.25,244.16]
[1751558424882,7.43671203,150.35,150.26,7.43671203]
[1751558425084,7.154491,150.36,150.26,7.43671203]
[1751558425287,7.43671203,150.35,150.27,2.3056]
[1751558425489,6.6491,150.35,150.31,6.6506]
[1751558425682,2.1838,150.39,150.3,47.28]
[1751558425883,6.648,150.37,150.33,6.6493]
[1751558426086,7.43671203,150.37,150.31,2.2962]
[1751558426489,14.08491203,150.37,150.33,6.6494]
[1751558426688,7.43671203,150.39,150.31,2.2962]
[1751558426888,5.74971708,150.38,150.31,2.2962]
[1751558427284,10.36536057,150.38,150.32,7.43671203]
[1751558427486,6.6471,150.39,150.35,6.6485]
[1751558427683,4.61564349,150.4,150.32,7.43671203]
[1751558427883,13.18365159,150.39,150.31,199.1562]
[1751558428089,7.43671203,150.39,150.31,199.1562]
[1751558428286,57.13351203,150.41,150.32,7.43671203]
[1751558428488,5.74306829,150.4,150.32,7.43671203]
[1751558428789,5.74306829,150.4,150.33,39.77]
[1751558429389,7.43671203,150.35,150.3,17.31]
[1751558429589,7.43671203,150.33,150.3,17.31]
[1751558429783,7.43671203,150.35,150.3,17.31]
[1751558429984,7.43671203,150.36,150.32,16.63]
[1751558430189,18.10769867,150.4,150.34,6.649]
[1751558430389,5.74249187,150.39,150.32,16.63]
[1751558430589,7.43671203,150.4,150.32,16.63]
[1751558430788,6.6482,150.37,150.34,6.649]
[1751558430983,7.43671203,150.4,150.32,16.63]
[1751558431283,7.43671203,150.4,150.35,6.6485]
[1751558432090,6.6477,150.38,150.35,6.6485]
[1751558432492,7.43671203,150.4,150.36,6.6482]
[1751558432694,6.6475,150.38,150.36,6.6482]
[1751558433490,6.6475,150.38,150.35,6.6486]
[1751558433891,6.6472,150.39,150.36,6.6481]
[1751558435096,6.6475,150.38,150.36,6.6481]
[1751558435994,6.6475,150.38,150.35,6.6486]
[1751558436887,7.43671203,150.42,150.33,54.69671203]
[1751558437095,4.72465732,150.42,150.35,7.43671203]
[1751558437393,119.35028311,150.43,150.37,7.43671203]
[1751558437597,119.35028311,150.43,150.38,47.26]
[1751558437896,4.7613,150.47,150.38,47.26]
[1751558437897,7.43671203,150.46,150.38,47.26]
[1751558438093,7.43671203,150.46,150.38,54.2465]
[1751558438301,6.6451,150.44,150.4,6.6463]
[1751558438993,7.43671203,150.45,150.38,54.2465]
[1751558439193,7.16439853,150.47,150.34,47.26]
[1751558439399,7.43671203,150.4,150.34,47.26]
[1751558439698,6.6473,150.39,150.36,6.6481]
[1751558439896,7.43671203,150.42,150.34,47.26]
[1751558440102,7.43671203,150.45,150.37,7.43671203]
[1751558440297,4.76045437,150.45,150.37,7.43671203]
[1751558440494,11.40415437,150.47,150.39,7.43671203]
[1751558440699,6.6437,150.47,150.4,49.5952]
[1751558440892,4.76045437,150.48,150.4,49.5952]
[1751558441097,9.82551203,150.49,150.4,49.5952]
[1751558441397,7.43671203,150.49,150.4,49.5952]
[1751558441598,12.1971664,150.49,150.4,49.5952]
[1751558441902,47.26,150.52,150.4,49.5952]
[1751558442096,7.43671203,150.49,150.4,49.5952]
[1751558442293,7.43671203,150.47,150.4,49.5952]
[1751558443006,7.43671203,150.49,150.41,7.43671203]
[1751558443199,7.43671203,150.49,150.4,49.5952]
[1751558443804,7.43671203,150.49,150.41,7.43671203]
[1751558444105,6.6438,150.47,150.44,6.6446]
[1751558444303,7.43671203,150.49,150.41,7.43671203]
[1751558445005,7.43671203,150.49,150.4,49.5952]
[1751558445206,6.6442,150.46,150.43,6.645]
[1751558445402,6.6442,150.46,150.4,49.5952]
[1751558445604,7.43671203,150.49,150.4,49.5952]
[1751558445804,4.61952281,150.51,150.44,6.6444]
[1751558446005,7.43671203,150.49,150.41,7.43671203]
[1751558446408,6.6437,150.47,150.41,7.43671203]
[1751558446710,7.43671203,150.49,150.41,7.43671203]
[1751558446910,6.6438,150.47,150.43,6.6451]
[1751558447106,7.43671203,150.49,150.43,6.6451]
[1751558447602,7.43671203,150.5,150.44,6.6448]
[1751558448709,7.43671203,150.5,150.41,7.43671203]
[1751558449209,7.43671203,150.5,150.45,6.6441]
[1751558449807,6.6436,150.47,150.44,6.6446]
[1751558450111,7.43671203,150.5,150.42,7.43671203]
[1751558450410,6.6431,150.48,150.46,6.6439]
[1751558450606,7.43671203,150.5,150.46,6.6439]
[1751558450806,7.43671203,150.5,150.4,49.5952]
[1751558451108,6.6438,150.47,150.44,6.6445]
[1751558451409,6.6438,150.47,150.41,7.43671203]
[1751558452207,13.41744232,150.52,150.43,7.43671203]
[1751558452411,5.77143342,150.51,150.44,4.5482]
[1751558452610,5.77143342,150.5,150.46,6.6436]
[1751558452811,5.77143342,150.49,150.45,47.46]
[1751558453311,12.41483342,150.48,150.45,47.46]
[1751558453511,6.6434,150.48,150.45,47.46]
[1751558453811,6.6437,150.47,150.45,47.46]
[1751558454310,12.42870417,150.46,150.45,47.46]
[1751558454712,13.41744232,150.5,150.45,47.46]
[1751558454906,6.6433,150.48,150.46,6.6437]
[1751558455103,5.80388229,150.47,150.45,47.46]
[1751558455308,5.80388229,150.46,150.45,47.46]
[1751558455504,5.98073029,150.5,150.42,47.46]
[1751558455706,5.81205203,150.49,150.42,47.46]
[1751558455903,5.81205203,150.48,150.42,47.46]
[1751558456105,5.81205203,150.47,150.42,47.46]
[1751558456305,12.45605203,150.46,150.43,6.6451]
[1751558456504,5.81205203,150.45,150.42,47.46]
[1751558456713,6.644,150.46,150.42,47.46]
[1751558456913,5.81528846,150.45,150.44,6.6448]
[1751558460417,5.98073029,150.49,150.44,7.43671203]
[1751558460617,4.65921228,150.48,150.42,54.89671203]
[1751558460919,4.65921228,150.47,150.45,6.6443]
[1751558461114,4.6623012,150.46,150.45,6.6443]
[1751558461414,4.6623012,150.46,150.44,6.6445]
[1751558461710,5.98073029,150.48,150.42,54.89671203]
[1751558461916,5.98073029,150.49,150.43,4.94464242]
[1751558462217,5.98073029,150.49,150.46,6.6437]
[1751558462510,5.98073029,150.49,150.45,4.94464242]
[1751558462716,5.98073029,150.49,150.47,6.6432]
[1751558463805,5.98073029,150.49,150.48,6.6431]
[1751558464211,10.49721802,150.49,150.48,6.6431]
[1751558464516,5.98073029,150.49,150.48,6.6431]
[1751558464712,5.98073029,150.49,150.47,54.0833]
[1751558464918,5.98073029,150.49,150.47,47.44]
[1751558465210,5.98073029,150.5,150.47,47.44]
[1751558465416,5.98073029,150.5,150.48,6.6428]
[1751558465709,5.98073029,150.5,150.47,52.38464242]
[1751558465910,4.51945631,150.51,150.47,52.38464242]
[1751558465911,10.50000262,150.51,150.5,6.6422]
[1751558466110,5.98073029,150.51,150.47,52.38464242]
[1751558466306,5.98073029,150.51,150.47,47.44]
[1751558466712,4.51301661,150.5,150.47,47.44]
[1751558466917,10.92537271,150.49,150.47,47.44]
[1751558467416,17.56777271,150.5,150.47,47.44]
[1751558467619,4.51432431,150.49,150.47,47.44]
[1751558467817,17.56777271,150.5,150.47,47.44]
[1751558468317,12.62313029,150.5,150.47,54.0835]
[1751558469216,6.6424,150.5,150.47,54.0835]
[1751558469418,4.49080625,150.5,150.48,6.6429]
[1751558469818,11.13320625,150.5,150.47,54.0833]
[1751558470318,11.13608624,150.5,150.47,54.0833]
[1751558471113,6.6424,150.5,150.47,54.0833]
[1751558471325,10.92537271,150.51,150.47,47.44]
[1751558471511,10.92537271,150.49,150.42,52.0607]
[1751558471716,4.94464242,150.47,150.42,52.0607]
[1751558472217,11.58824242,150.47,150.44,6.6445]
[1751558472416,5.79038069,150.46,150.42,52.0607]
[1751558472616,5.79038069,150.45,150.44,6.6448]
[1751558473414,4.49528764,150.48,150.46,6.6436]
[1751558473619,5.79330574,150.47,150.46,6.6436]
[1751558474211,5.79330574,150.47,150.42,57.00534242]
[1751558474418,6.6433,150.48,150.42,57.00534242]
[1751558474613,4.4994979,150.48,150.44,6.6447]
[1751558474821,11.58844242,150.47,150.44,6.6447]
[1751558475028,11.58844242,150.47,150.42,47.44]
[1751558475219,11.58844242,150.47,150.44,6.6444]
[1751558475413,4.94464242,150.47,150.42,47.44]
[1751558476121,4.50192375,150.47,150.42,47.44]
[1751558476421,5.98073029,150.48,150.42,47.44]
[1751558476422,6.6433,150.48,150.42,47.44]
[1751558476622,11.14522375,150.48,150.42,47.44]
[1751558476821,11.14522375,150.48,150.45,6.6441]
[1751558477219,11.14522375,150.48,150.43,4.94464242]
[1751558477415,10.92537271,150.49,150.43,4.94464242]
[1751558477626,8.0852948,150.51,150.45,4.94464242]
[1751558477627,17.66889014,150.5,150.45,4.94464242]
[1751558477923,4.4968456,150.49,150.45,4.94464242]
[1751558478123,5.98073029,150.5,150.47,6.6432]
[1751558478124,13.048245,150.5,150.47,6.6432]
[1751558478320,13.048245,150.5,150.45,4.94464242]
[1751558478824,10.47757589,150.5,150.45,4.94464242]
[1751558479025,5.98073029,150.5,150.45,4.94464242]
[1751558479318,4.4968456,150.51,150.48,6.6427]
[1751558479319,13.71190887,150.51,150.48,6.6427]
[1751558479823,6.6419,150.51,150.48,6.6427]
[1751558480015,12.62263029,150.51,150.48,6.6427]
[1751558480214,5.98073029,150.52,150.47,52.20464242]
[1751558480421,13.05929408,150.53,150.47,52.20464242]
[1751558480726,12.62173029,150.53,150.5,6.642]
[1751558481315,12.62173029,150.53,150.47,52.20464242]
[1751558481316,5.98073029,150.53,150.51,6.6417]
[1751558481533,19.70356511,150.54,150.51,6.6417]
[1751558481727,4.50591255,150.53,150.52,6.6413]
[1751558481926,7.08227079,150.54,150.52,6.6413]
[1751558482226,7.08492346,150.54,150.52,6.6413]
[1751558482428,7.08492346,150.54,150.53,6.6409]
[1751558482627,13.06565375,150.55,150.53,6.6409]
[1751558483426,7.08492346,150.55,150.49,4.94464242]
[1751558483726,7.08492346,150.56,150.53,4.94464242]
[1751558483922,7.08492346,150.56,150.55,6.64]
[1751558484120,5.98073029,150.58,150.53,52.18464242]
[1751558484121,7.08492346,150.57,150.53,52.18464242]
[1751558484426,4.50856522,150.57,150.53,53.8806]
[1751558484622,4.94464242,150.56,150.53,47.24]
[1751558484822,2.57635824,150.56,150.54,6.6401]
[1751558485022,7.08492346,150.56,150.53,52.18464242]
[1751558485223,7.09106125,150.57,150.53,52.18464242]
[1751558485424,4.50856522,150.57,150.56,6.6395]
[1751558485625,5.77915494,150.57,150.56,6.6395]
[1751558486122,5.98073029,150.61,150.57,6.6387]
[1751558486323,10.32199444,150.6,150.55,4.94464242]
[1751558486627,10.32199444,150.59,150.55,4.94464242]
[1751558486926,5.77705885,150.58,150.55,4.94464242]
[1751558487227,10.92537271,150.61,150.58,6.6384]
[1751558487427,5.77516085,150.6,150.55,4.94464242]
[1751558487627,5.77516085,150.59,150.55,4.94464242]
[1751558487829,4.54556002,150.6,150.55,4.94464242]
[1751558488126,5.77580088,150.59,150.55,4.94464242]
[1751558488427,7.12722076,150.61,150.55,4.94464242]
[1751558488624,5.77560298,150.6,150.55,4.94464242]
[1751558488825,5.77560298,150.59,150.55,4.94464242]
[1751558489026,11.7249109,150.61,150.59,6.638]
[1751558489230,10.36435628,150.6,150.59,6.638]
[1751558489423,5.81879626,150.6,150.59,6.638]
[1751558490430,2.3236,150.63,150.59,6.638]
[1751558490722,5.81519606,150.62,150.59,6.638]
[1751558490928,5.81519606,150.61,150.59,6.638]
[1751558491227,6.637,150.62,150.59,6.638]
[1751558491426,5.8154607,150.61,150.6,6.6377]
[1751558491628,7.15102358,150.64,150.59,4.94464242]
[1751558491828,5.81378445,150.63,150.61,6.6373]
[1751558492029,5.81378445,150.62,150.61,6.6373]
[1751558492225,5.81378445,150.64,150.61,6.6373]
[1751558492429,9.51245675,150.65,150.59,4.94464242]
[1751558492430,5.81378445,150.63,150.62,6.6369]
[1751558493430,5.81378445,150.64,150.63,6.6364]
[1751558493632,5.81592173,150.64,150.63,6.6364]
[1751558493832,10.37771947,150.66,150.63,6.6364]
[1751558494032,5.81592173,150.65,150.61,4.94464242]
[1751558494230,5.81592173,150.64,150.61,4.94464242]
[1751558494426,6.6354,150.66,150.63,6.6364]
[1751558494734,5.81335323,150.65,150.63,6.6364]
[1751558495027,5.81335323,150.64,150.63,6.6364]
[1751558495232,6.6349,150.67,150.64,6.636]
[1751558495434,5.81500916,150.66,150.64,6.636]
[1751558495634,5.81500916,150.65,150.64,6.636]
[1751558495828,5.81500916,150.66,150.64,6.636]
[1751558496028,5.81500916,150.65,150.64,6.636]
[1751558496330,5.81500916,150.66,150.59,23.82]
[1751558496535,5.81500916,150.65,150.59,23.82]
[1751558496735,4.94464242,150.65,150.59,23.82]
[1751558496936,11.58044242,150.65,150.62,6.6366]
[1751558497934,6.6361,150.64,150.61,6.637]
[1751558498129,4.94464242,150.65,150.6,47.22]
[1751558498334,4.94464242,150.61,150.59,23.82]
[1751558498527,6.6378,150.6,150.59,23.82]
[1751558498727,12.44176287,150.6,150.59,23.82]
[1751558498933,6.6402,150.55,150.52,6.641]
[1751558499139,4.94464242,150.56,150.51,47.22]
[1751558499339,4.94464242,150.54,150.51,47.22]
[1751558499640,11.58544242,150.54,150.51,53.8615]
[1751558499838,7.41322395,150.55,150.51,53.8615]
[1751558500042,6.6407,150.54,150.51,53.8615]
[1751558500434,7.41322395,150.55,150.51,47.22]
[1751558500635,7.41322395,150.53,150.51,47.22]
[1751558501142,7.41322395,150.57,150.51,47.22]
[1751558501342,7.41322395,150.54,150.51,47.22]
[1751558501836,6.6409,150.53,150.51,47.22]
[1751558502235,7.41322395,150.54,150.51,47.22]